[Event "56th Biel Festival MTO 2023"]
[White "Pernutz,Hans-Gerhard"]
[Black "Jaksland,Tim"]
[Site "Biel"]
[Round "5.46"]
[Annotator "RC"]
[Result "0-1"]
[Date "2023.07.21"]
[WhiteElo "2054"]
[BlackElo "2136"]
[PlyCount "128"]
[TimeControl "60"]

1. e4 {[%emt 0:0:0]} e5 {[%emt 0:0:0]} 2. Nf3 {[%emt 0:0:0]} Nc6 {[%emt 0:0:0]} 3. d4 {[%emt 0:0:0]} exd4 {[%emt 0:0:0]} 4. Bc4 {[%emt 0:0:0]} Bc5 {[%emt 0:0:0]} 5. c3 {[%emt 0:0:0]} Nf6 {[%emt 0:0:0]} 6. e5 {[%emt 0:1:40]} d5 {[%emt 0:0:0]} 7. Bb5 {[%emt 0:1:31]} Ne4 {[%emt 0:0:16]} 8. cxd4 {[%emt 0:0:51]} Bb6 {[%emt 0:0:32]} 9. Bxc6+ {[%emt 0:19:4]} bxc6 {[%emt 0:0:54]} 10. O-O {[%emt 0:0:29]} O-O {[%emt 0:0:50]} 11. h3 {[%emt 0:2:46]} f6 {[%emt 0:11:10]} 12. Nc3 {[%emt 0:7:42]} Ba6 {[%emt 0:28:22]} 13. Re1 {[%emt 0:25:38]} fxe5 {[%emt 0:1:23]} 14. Nxe4 {[%emt 0:0:17]} dxe4 {[%emt 0:3:32]} 15. Nxe5 {[%emt 0:1:55]} Bxd4 {[%emt 0:3:38]} 16. Ng4 {[%emt 0:0:45]} Bd3 {[%emt 0:10:27]} 17. Be3 {[%emt 0:1:50]} Rb8 {[%emt 0:4:14]} 18. Bxd4 {[%emt 0:1:7]} Qxd4 {[%emt 0:0:6]} 19. b3 {[%emt 0:1:28]} c5 {[%emt 0:10:58]} 20. Qd2 {[%emt 0:5:17]} h5 {[%emt 0:4:55]} 21. Ne3 {[%emt 0:1:12]} Rb6 {[%emt 0:1:19]} 22. Rac1 {[%emt 0:1:16]} Rbf6 {[%emt 0:2:54]} 23. Nd1 {[%emt 0:4:34]} Ra6 {[%emt 0:4:44]} 24. Ne3 {[%emt 0:0:25]} Raf6 {[%emt 0:1:36]} 25. Nd1 {[%emt 0:0:11]} R8f7 {[%emt 0:0:30]} 26. Qe3 {[%emt 0:1:28]} Rf5 {[%emt 0:2:51]} 27. Qd2 {[%emt 0:2:50]} R7f6 {[%emt 0:0:20]} 28. Re3 {[%emt 0:2:33]} h4 {[%emt 0:0:39]} 29. Re1 {[%emt 0:3:55]} Kh7 {[%emt 0:1:58]} 30. Ne3 {[%emt 0:3:47]} Rxf2 {[%emt 0:1:12]} 31. Qxf2 {[%emt 0:0:6]} Rxf2 {[%emt 0:0:5]} 32. Kxf2 {[%emt 0:0:5]} Qb2+ {[%emt 0:0:18]} 33. Kg1 {[%emt 0:0:15]} Qxa2 {[%emt 0:2:26]} 34. Rxc5 {[%emt 0:1:22]} Qd2 {[%emt 0:1:57]} 35. Rcc1 {[%emt 0:0:25]} Qb4 {[%emt 0:0:59]} 36. Kh1 {[%emt 0:2:51]} c5 {[%emt 0:0:56]} 37. Ng4 {[%emt 0:2:23]} a5 {[%emt 0:0:49]} 38. Ne5 {[%emt 0:1:43]} Qd4 {[%emt 0:1:26]} 39. Nc6 {[%emt 0:0:22]} Qf2 {[%emt 0:0:30]} 40. Nxa5 {[%emt 0:0:44]} e3 {[%emt 0:0:28]} 41. Nc4 {[%emt 0:30:13]} e2 {[%emt 0:30:59]} 42. Nd2 {[%emt 0:2:42]} Kh6 {[%emt 0:0:0]} 43. Rg1 {[%emt 0:0:0]} Qe3 {[%emt 0:0:0]} 44. Nf3 {[%emt 0:0:0]} Be4 {[%emt 0:0:0]} 45. Rce1 {[%emt 0:0:0]} Bxf3 {[%emt 0:0:0]} 46. gxf3 {[%emt 0:0:0]} Qxf3+ {[%emt 0:0:0]} 47. Kh2 {[%emt 0:0:0]} Qf2+ {[%emt 0:0:0]} 48. Kh1 {[%emt 0:0:0]} g5 {[%emt 0:0:0]} 49. Rb1 {[%emt 0:0:0]} Kg6 {[%emt 0:0:0]} 50. Rbc1 {[%emt 0:0:0]} Kf5 {[%emt 0:0:0]} 51. Rb1 {[%emt 0:0:0]} Ke6 {[%emt 0:0:0]} 52. Rbc1 {[%emt 0:0:0]} Kd6 {[%emt 0:0:0]} 53. Rb1 {[%emt 0:0:0]} Kc6 {[%emt 0:0:0]} 54. b4 {[%emt 0:0:0]} cxb4 {[%emt 0:0:0]} 55. Rbc1+ {[%emt 0:0:0]} Kd6 {[%emt 0:0:0]} 56. Rb1 {[%emt 0:0:0]} Qe3 {[%emt 0:0:0]} 57. Kh2 {[%emt 0:0:0]} b3 {[%emt 0:0:0]} 58. Rbe1 {[%emt 0:0:0]} Kd5 {[%emt 0:0:0]} 59. Rb1 {[%emt 0:0:0]} Kd4 {[%emt 0:0:0]} 60. Rg4+ {[%emt 0:0:0]} Kc3 {[%emt 0:0:0]} 61. Rgg1 {[%emt 0:0:0]} b2 {[%emt 0:0:0]} 62. Rbe1 {[%emt 0:0:0]} Kc2 {[%emt 0:0:0]} 63. Rb1 {[%emt 0:0:0]} Qd2 {[%emt 0:0:0]} 64. Rbe1 {[%emt 0:0:0]} b1=Q {[%emt 0:0:0]} 0-1

[Event "56th Biel Festival MTO 2023"]
[White "Perkampus,Laurin"]
[Black "Erne,Raphael"]
[Site "Biel"]
[Round "5.47"]
[Annotator "NA RC"]
[Result "1/2-1/2"]
[Date "2023.07.21"]
[WhiteElo "2197"]
[BlackElo "2077"]
[PlyCount "79"]
[TimeControl "60"]

1. d4 {[%emt 0:0:0]} d5 {[%emt 0:0:0]} 2. c4 {[%emt 0:0:0]} c6 {[%emt 0:0:0]} 3. Nc3 {[%emt 0:0:0]} Nf6 {[%emt 0:0:0]} 4. e3 {[%emt 0:0:0]} e6 {[%emt 0:0:0]} 5. Nf3 {[%emt 0:0:0]} Nbd7 {[%emt 0:0:0]} 6. Qc2 {[%emt 0:0:0]} Bd6 {[%emt 0:0:0]} 7. Bd3 {[%emt 0:0:0]} dxc4 {[%emt 0:0:0]} 8. Bxc4 {[%emt 0:0:0]} b5 {[%emt 0:0:0]} 9. Be2 {[%emt 0:1:59]} Bb7 {[%emt 0:0:0]} 10. O-O {[%emt 0:4:6]} O-O {[%emt 0:0:0]} 11. e4 {[%emt 0:2:14]} e5 {[%emt 0:0:0]} 12. dxe5 {[%emt 0:0:21]} Nxe5 {[%emt 0:0:0]} 13. Nd4 {[%emt 0:1:44]} Neg4 {[%emt 0:10:23]} 14. g3 {[%emt 0:0:12]} Bc5 {[%emt 0:17:27]} 15. Nf5 {[%emt 0:1:25]} Qb6 {[%emt 0:7:29]} 16. Kg2 {[%emt 0:2:0]} Bc8 {[%emt 0:9:49]} 17. h3 {[%emt 0:54:23]} Bxf5 {[%emt 0:9:7]} 18. exf5 {[%emt 0:0:42]} Ne5 {[%emt 0:4:41]} 19. Bg5 {[%emt 0:2:49]} Ned7 {[%emt 0:7:19]} 20. Rad1 {[%emt 0:3:28]} h6 {[%emt 0:3:14]} 21. Bf4 {[%emt 0:1:54]} Rad8 {[%emt 0:5:2]} 22. g4 {[%emt 0:4:44]} Bd4 {[%emt 0:4:44]} 23. Bg3 {[%emt 0:8:5]} Rfe8 {[%emt 0:5:11]} 24. Rfe1 {[%emt 0:5:33]} a6 {[%emt 0:4:53]} 25. Bf3 {[%emt 0:1:4]} c5 {[%emt 0:1:46]} 26. Ne4 {[%emt 0:3:7]} Ne5 {[%emt 0:3:55]} 27. Nxf6+ {[%emt 0:1:20]} Qxf6 {[%emt 0:0:12]} 28. Bxe5 {[%emt 0:0:48]} Rxe5 {[%emt 0:0:20]} 29. Rxe5 {[%emt 0:0:21]} Qxe5 {[%emt 0:0:12]} 30. Qe2 {[%emt 0:1:37]} Qf6 {[%emt 0:3:51]} 31. b3 {[%emt 0:0:35]} h5 {[%emt 0:1:38]} 32. Qe4 {[%emt 0:0:58]} c4 {[%emt 0:1:26]} 33. bxc4 {[%emt 0:0:27]} bxc4 {[%emt 0:0:5]} 34. gxh5 {[%emt 0:0:29]} c3 {[%emt 0:0:55]} 35. Kf1 {[%emt 0:0:52]} Qb6 {[%emt 0:1:16]} 36. h6 {[%emt 0:0:39]} Qxh6 {[%emt 0:1:29]} 37. Bg2 {[%emt 0:0:33]} Qb6 {[%emt 0:0:24]} 38. Rb1 {[%emt 0:0:22]} Qc5 {[%emt 0:0:43]} 39. Qc2 {[%emt 0:0:28]} Bxf2 {[%emt 0:0:56]} 40. h4 {[%emt 0:0:0]} 1/2-1/2

[Event "56th Biel Festival MTO 2023"]
[White "Schnell,Simon"]
[Black "Gemelli,Romain"]
[Site "Biel"]
[Round "5.48"]
[Annotator "NA"]
[Result "0-1"]
[Date "2023.07.21"]
[WhiteElo "2029"]
[BlackElo "2122"]
[PlyCount "42"]
[TimeControl "60"]

1. d4 {[%emt 0:0:0]} Nf6 {[%emt 0:0:0]} 2. c4 {[%emt 0:0:0]} e6 {[%emt 0:0:0]} 3. Nc3 {[%emt 0:0:0]} Bb4 {[%emt 0:0:0]} 4. e3 {[%emt 0:0:0]} O-O {[%emt 0:0:0]} 5. Nge2 {[%emt 0:0:0]} c6 {[%emt 0:0:0]} 6. a3 {[%emt 0:0:0]} Ba5 {[%emt 0:0:0]} 7. Ng3 {[%emt 0:0:0]} d5 {[%emt 0:0:0]} 8. cxd5 {[%emt 0:0:0]} exd5 {[%emt 0:0:0]} 9. Bd3 {[%emt 0:0:0]} Re8 {[%emt 0:0:0]} 10. O-O {[%emt 0:0:0]} Nbd7 {[%emt 0:0:0]} 11. f3 {[%emt 0:9:4]} Nf8 {[%emt 0:0:0]} 12. Qc2 {[%emt 0:0:31]} Ne6 {[%emt 0:18:1]} 13. Qf2 {[%emt 0:20:4]} Bc7 {[%emt 0:18:5]} 14. Bd2 {[%emt 0:0:30]} h5 {[%emt 0:0:30]} 15. Rfe1 {[%emt 0:25:55]} g6 {[%emt 0:29:16]} 16. Rad1 {[%emt 0:0:30]} Qd6 {[%emt 0:0:30]} 17. Bc1 {[%emt 0:0:30]} Bd7 {[%emt 0:0:30]} 18. Nf1 {[%emt 0:5:43]} Qe7 {[%emt 0:6:2]} 19. h3 {[%emt 0:5:16]} Rad8 {[%emt 0:2:42]} 20. h4 {[%emt 0:29:45]} Kg7 {[%emt 0:24:17]} 21. g3 {[%emt 0:0:0]} Kh7 {[%emt 0:0:0]} 0-1

[Event "56th Biel Festival MTO 2023"]
[White "Ludwig,Peter"]
[Black "Giacomini,Hector"]
[Site "Biel"]
[Round "5.49"]
[Annotator "NA RC"]
[Result "1/2-1/2"]
[Date "2023.07.21"]
[WhiteElo "2147"]
[BlackElo "2126"]
[PlyCount "101"]
[TimeControl "60"]

1. g3 {[%emt 0:0:0]} d5 {[%emt 0:0:0]} 2. Bg2 {[%emt 0:0:0]} Nf6 {[%emt 0:0:0]} 3. Nf3 {[%emt 0:0:0]} e6 {[%emt 0:0:0]} 4. O-O {[%emt 0:0:0]} c5 {[%emt 0:0:0]} 5. c4 {[%emt 0:0:0]} dxc4 {[%emt 0:0:0]} 6. Na3 {[%emt 0:0:0]} Nc6 {[%emt 0:0:0]} 7. Nxc4 {[%emt 0:0:0]} Be7 {[%emt 0:0:0]} 8. b3 {[%emt 0:0:0]} O-O {[%emt 0:0:0]} 9. Bb2 {[%emt 0:0:0]} Qc7 {[%emt 0:0:0]} 10. Nfe5 {[%emt 0:0:0]} Bd7 {[%emt 0:0:0]} 11. Rc1 {[%emt 0:2:4]} Rfd8 {[%emt 0:0:0]} 12. e3 {[%emt 0:3:14]} Be8 {[%emt 0:0:0]} 13. f4 {[%emt 0:16:56]} Rac8 {[%emt 0:6:18]} 14. Ng4 {[%emt 0:13:15]} b5 {[%emt 0:9:9]} 15. Nce5 {[%emt 0:1:45]} Nxe5 {[%emt 0:7:4]} 16. Bxe5 {[%emt 0:1:30]} Qd7 {[%emt 0:3:21]} 17. Rf2 {[%emt 0:1:37]} Nxg4 {[%emt 0:12:20]} 18. Qxg4 {[%emt 0:0:24]} f6 {[%emt 0:0:5]} 19. Bc3 {[%emt 0:3:30]} Bg6 {[%emt 0:2:14]} 20. e4 {[%emt 0:6:4]} c4 {[%emt 0:5:9]} 21. b4 {[%emt 0:6:17]} a5 {[%emt 0:1:59]} 22. a3 {[%emt 0:0:8]} Bf7 {[%emt 0:5:44]} 23. h4 {[%emt 0:5:40]} axb4 {[%emt 0:10:11]} 24. axb4 {[%emt 0:0:10]} h5 {[%emt 0:1:40]} 25. Qe2 {[%emt 0:1:20]} Qd3 {[%emt 0:0:39]} 26. Kh2 {[%emt 0:6:11]} Qxe2 {[%emt 0:2:53]} 27. Rxe2 {[%emt 0:0:5]} e5 {[%emt 0:7:38]} 28. fxe5 {[%emt 0:1:38]} fxe5 {[%emt 0:0:5]} 29. Ra1 {[%emt 0:0:25]} Ra8 {[%emt 0:0:45]} 30. Ree1 {[%emt 0:1:29]} Bd6 {[%emt 0:1:37]} 31. Bh3 {[%emt 0:0:29]} Ra4 {[%emt 0:10:35]} 32. Rxa4 {[%emt 0:14:13]} bxa4 {[%emt 0:0:5]} 33. Ra1 {[%emt 0:0:2]} Ra8 {[%emt 0:1:1]} 34. Bd7 {[%emt 0:2:47]} a3 {[%emt 0:0:26]} 35. Kg2 {[%emt 0:0:8]} Kf8 {[%emt 0:1:19]} 36. Kf3 {[%emt 0:0:18]} Be8 {[%emt 0:2:27]} 37. Be6 {[%emt 0:0:57]} Bb5 {[%emt 0:0:57]} 38. Bd5 {[%emt 0:5:48]} Ra4 {[%emt 0:2:45]} 39. g4 {[%emt 0:1:26]} g6 {[%emt 0:2:1]} 40. g5 {[%emt 0:0:15]} Ke8 {[%emt 0:5:45]} 41. Ke3 {[%emt 0:2:22]} Ke7 {[%emt 0:0:0]} 42. Rf1 {[%emt 0:4:58]} a2 {[%emt 0:0:0]} 43. Ra1 {[%emt 0:7:10]} Bxb4 {[%emt 0:0:0]} 44. Bxb4+ {[%emt 0:8:42]} Rxb4 {[%emt 0:0:0]} 45. Rxa2 {[%emt 0:0:3]} Rb3+ {[%emt 0:0:0]} 46. Kf2 {[%emt 0:0:10]} Rh3 {[%emt 0:0:0]} 47. Ra7+ {[%emt 0:2:47]} Kd8 {[%emt 0:7:10]} 48. Rg7 {[%emt 0:1:16]} Be8 {[%emt 0:1:50]} 49. Rg8 {[%emt 0:1:5]} Ke7 {[%emt 0:0:45]} 50. Rg7+ {[%emt 0:0:12]} Kd8 {[%emt 0:0:32]} 51. Rg8 {[%emt 0:0:13]} 1/2-1/2

[Event "56th Biel Festival MTO 2023"]
[White "Aryan Chopra"]
[Black "Bu,Xiangzhi"]
[Site "Biel"]
[Round "6.1"]
[Annotator "TA"]
[Result "1/2-1/2"]
[Date "2023.07.24"]
[WhiteElo "2626"]
[BlackElo "2676"]
[PlyCount "123"]
[TimeControl "60"]

{[%evp 12,123,45,50,53,72,54,20,20,23,16,17,33,22,22,20,20,24,21,23,25,25,24,20,35,29,30,20,29,29,30,9,14,8,71,71,94,83,87,87,87,87,87,87,87,83,104,35,35,35,62,27,32,31,33,33,30,27,100,100,100,100,100,100,100,100,95,95,95,70,83,79,118,37,65,8,8,8,8,8,8,8,8,8,8,8,8,8,8,0,8,8,8,0,8,8,8,8,8,8,8,8,8,8,8,8,8,8,8,8,12,12,27,27]} 1. c4 {[%emt 0:0:0]} e6 {[%emt 0:0:0]} 2. Nc3 {[%emt 0:0:0]} c5 {[%emt 0:0:0]} 3. Nf3 {[%emt 0:0:0]} d5 {[%emt 0:0:0]} 4. cxd5 {[%emt 0:0:0]} exd5 {[%emt 0:0:0]} 5. d4 {[%emt 0:0:0]} Nc6 {[%emt 0:2:29]} 6. dxc5 {[%emt 0:0:0]} d4 {[%emt 0:2:16]} 7. Na4 {[%emt 0:0:0]} Bxc5 {[%emt 0:0:13][%mdl 64] Decoy. D32: Tarrasch Defence: Sidelines and lines without g3.} 8. Nxc5 {[%emt 0:0:0]} Qa5+ {[%emt 0:0:3]} 9. Bd2 {[%emt 0:0:0]} Qxc5 {[%emt 0:0:4] The position is equal.} 10. Rc1 {[%emt 0:0:0]} Qb6 {[%emt 0:18:1]} 11. e3 {[%emt 0:0:0]} Nf6 {[%emt 0:1:39]} 12. Bc4 {[%emt 0:7:23]} dxe3 {[%emt 0:0:14]} 13. Bxe3 {[%emt 0:0:9]} Qb4+ {[%emt 0:0:6]} 14. Bd2 {[%emt 0:16:44] This pair of bishops is nice.} Qe7+ {[%emt 0:0:6]} 15. Qe2 {[%emt 0:0:21]} Qxe2+ {[%emt 0:0:27]} 16. Kxe2 {[%emt 0:0:11]} O-O {[%emt 0:1:33]} 17. h3 {[%emt 0:7:44] [#]} Ne4 $146 {[%emt 0:24:1]} (17... Bf5 {with more complications.} 18. Rhd1 Rad8 19. Bg5 Rfe8+ )({Predecessor:} 17... Be6 18. Bxe6 Rfe8 19. Rhd1 Rxe6+ 20. Be3 Kf8 21. Nd4 Nxd4+ 22. Rxd4 h6 23. Kf3 Ke8 {1-0 Schmakel,S (2418)-Shlyakhtenko,R (2435) Los Angeles Labor Day GM 2022 (1)} )18. Rhd1 {[%emt 0:14:33]} Nxd2 {[%emt 0:5:40]} 19. Rxd2 {[%emt 0:0:6]} Re8+ {[%emt 0:5:46]} 20. Kf1 {[%emt 0:0:54]} Rd8 {[%emt 0:7:18]} 21. Rxd8+ {[%emt 0:20:39]} Nxd8 {[%emt 0:0:1]} 22. Rd1 {[%emt 0:0:9][%cal Rd1d8]} Ne6 {[%emt 0:13:0] [#]} (22... Be6 $11 {remains equal.} 23. Bxe6 Nxe6 )23. Ng5 $1 $16 {[%emt 0:1:45][%mdl 64] Deflection, Back Rank} b6 {[%emt 0:1:9]} (23... h6 24. Nxe6 )24. b3 {[%emt 0:15:37]} h6 {[%emt 0:4:11]} 25. Nxe6 {[%emt 0:0:20]} fxe6 {[%emt 0:1:42][%mdl 4096] Endgame KRB-KRB} 26. Rd6 {[%emt 0:4:50]} Kf7 {[%emt 0:3:8]} 27. Rc6 $1 {[%emt 0:0:7]} Kf6 {[%emt 0:2:24]} 28. Rc7 {[%emt 0:3:11]} a6 {[%emt 0:1:34]} 29. Bd3 {[%emt 0:2:52] White has more active pieces.} (29. g4 $16 )Rb8 $1 $14 {[%emt 0:3:49]} 30. Be4 {[%emt 0:0:16]} e5 {[%emt 0:0:0]} 31. b4 {[%emt 0:4:14]} Be6 {[%emt 0:0:0]} 32. a3 {[%emt 0:0:18]} a5 {[%emt 0:1:21]} 33. f3 {[%emt 0:1:55]} axb4 {[%emt 0:0:7]} 34. axb4 {[%emt 0:0:1]} Rd8 {[%emt 0:3:17]} ({But not} 34... Rc8 35. Rb7 $16 )(34... b5 $11 {keeps the balance.} )35. Rc6 $16 {[%emt 0:1:31]} b5 {[%emt 0:0:28] [#]} 36. Ke1 $1 {[%emt 0:0:9]} Ke7 {[%emt 0:1:50]} 37. Rc5 {[%emt 0:0:4][%csl LRb5,LRe5]} Bc4 {[%emt 0:0:58]} 38. Rxe5+ {[%emt 0:0:4]} Kf6 {[%emt 0:0:0]} 39. Rc5 {[%emt 0:0:44]} Rd7 {[%emt 0:0:7]} 40. Bc6 {[%emt 0:2:18]} Re7+ {[%emt 0:0:20] [#]} 41. Kd1 $1 {[%emt 0:0:0]} Bf1 {[%emt 0:0:0]} 42. f4 {[%emt 0:0:2]} ({Much worse is} 42. Bxb5 $6 Bxg2 43. Bc6 Bxh3 $11 )({White should try} 42. g4 $16 )Re3 {[%emt 0:8:5]} 43. g4 {[%emt 0:1:13]} (43. h4 $14 )Rb3 $11 {[%emt 0:8:37]} 44. g5+ {[%emt 0:10:38]} hxg5 {[%emt 0:0:8]} 45. fxg5+ {[%emt 0:0:6]} Ke7 {[%emt 0:0:1]} 46. Bxb5 {[%emt 0:0:40]} Bxh3 {[%emt 0:0:5]} 47. Rc4 {[%emt 0:0:32]} Rg3 {[%emt 0:0:57]} 48. Rc7+ {[%emt 0:0:27]} Kd6 {[%emt 0:0:35]} 49. Rxg7 {[%emt 0:0:17]} Rb3 {[%emt 0:0:4]} 50. g6 {[%emt 0:1:6]} Rxb4 {[%emt 0:0:48]} 51. Bd3 {[%emt 0:2:52]} Be6 {[%emt 0:1:19]} 52. Ra7 {[%emt 0:1:46]} Rd4 {[%emt 0:2:0]} 53. Ke2 {[%emt 0:0:26]} Ke5 {[%emt 0:0:43]} 54. Ra5+ {[%emt 0:4:21]} Rd5 {[%emt 0:0:6]} 55. Ra6 {[%emt 0:0:33]} Rd6 {[%emt 0:0:27]} 56. Ra8 {[%emt 0:0:25]} Kf6 {[%emt 0:0:17]} 57. Ke3 {[%emt 0:0:10]} Kg7 {[%emt 0:0:16]} 58. Ra7+ {[%emt 0:0:15]} Rd7 {[%emt 0:0:1]} 59. Ra6 {[%emt 0:0:10]} Bg8 {[%emt 0:0:36]} 60. Bf5 {[%emt 0:0:10]} Rb7 {[%emt 0:0:0]} 61. Kf4 {[%emt 0:0:11]} Rc7 {[%emt 0:0:33]} 62. Kg5 {[%emt 0:0:49] Weighted Error Value: White=0.08 (flawless) /Black=0.08 (flawless)} 1/2-1/2

[Event "56th Biel Festival MTO 2023"]
[White "Rodrigue-Lemieux,Shawn"]
[Black "Liu,Yan"]
[Site "Biel"]
[Round "6.2"]
[Annotator "ChessBase"]
[Result "1/2-1/2"]
[Date "2023.07.24"]
[WhiteElo "2495"]
[BlackElo "2542"]
[PlyCount "41"]
[TimeControl "60"]

1. e4 {[%emt 0:0:0]} c5 {[%emt 0:0:0]} 2. Nf3 {[%emt 0:0:0]} d6 {[%emt 0:0:0]} 3. Bb5+ {[%emt 0:0:0]} Nd7 {[%emt 0:0:0]} 4. Ba4 {[%emt 0:0:0]} Ngf6 {[%emt 0:0:0]} 5. O-O {[%emt 0:0:0]} e6 {[%emt 0:0:0]} 6. Re1 {[%emt 0:0:0]} a6 {[%emt 0:0:0]} 7. c4 {[%emt 0:0:0]} Be7 {[%emt 0:0:0]} 8. Nc3 {[%emt 0:0:0]} O-O {[%emt 0:0:0]} 9. d4 {[%emt 0:0:0]} cxd4 {[%emt 0:0:0]} 10. Nxd4 {[%emt 0:0:0]} Qc7 {[%emt 0:0:0]} 11. Qe2 {[%emt 0:0:0]} Ne5 {[%emt 0:0:0]} 12. Bb3 {[%emt 0:0:0]} Bd7 {[%emt 0:0:0]} 13. f4 {[%emt 0:0:0]} Qb6 {[%emt 0:0:16]} 14. Be3 {[%emt 0:0:0]} Neg4 {[%emt 0:0:9]} 15. Nf5 {[%emt 0:0:0]} Bd8 {[%emt 0:0:6]} 16. Ne7+ {[%emt 0:2:32]} Kh8 {[%emt 0:0:42]} 17. Bxb6 {[%emt 0:0:12]} Bxb6+ {[%emt 0:0:4]} 18. Kh1 {[%emt 0:0:9]} Nf2+ {[%emt 0:0:5]} 19. Kg1 {[%emt 0:0:5]} N2g4+ {[%emt 0:0:8]} 20. Kh1 {[%emt 0:0:5]} Nf2+ {[%emt 0:0:5]} 21. Kg1 {[%emt 0:0:5]} 1/2-1/2

[Event "56th Biel Festival MTO 2023"]
[White "Pranav Anand"]
[Black "Deuer,Marius"]
[Site "Biel"]
[Round "6.3"]
[Annotator "ChessBase"]
[Result "1/2-1/2"]
[Date "2023.07.24"]
[WhiteElo "2510"]
[BlackElo "2374"]
[PlyCount "64"]
[TimeControl "60"]

1. d4 {[%emt 0:0:0]} Nf6 {[%emt 0:0:0]} 2. c4 {[%emt 0:0:0]} e6 {[%emt 0:0:0]} 3. Nc3 {[%emt 0:0:0]} Bb4 {[%emt 0:0:0]} 4. Qc2 {[%emt 0:0:0]} O-O {[%emt 0:0:0]} 5. a3 {[%emt 0:0:0]} Bxc3+ {[%emt 0:0:0]} 6. Qxc3 {[%emt 0:0:0]} b6 {[%emt 0:0:0]} 7. Bg5 {[%emt 0:0:0]} Bb7 {[%emt 0:0:0]} 8. f3 {[%emt 0:0:0]} d6 {[%emt 0:0:0]} 9. Nh3 {[%emt 0:0:0]} Nbd7 {[%emt 0:0:4]} 10. e4 {[%emt 0:0:0]} e5 {[%emt 0:10:2]} 11. d5 {[%emt 0:4:32]} Rc8 {[%emt 0:3:10]} 12. b4 {[%emt 0:4:42]} c6 {[%emt 0:18:0]} 13. Qd2 {[%emt 0:0:33]} cxd5 {[%emt 0:14:18]} 14. cxd5 {[%emt 0:0:30]} h6 {[%emt 0:1:44]} 15. Be3 {[%emt 0:1:11]} Nh5 {[%emt 0:0:52]} 16. Bd3 {[%emt 0:10:36]} f5 {[%emt 0:9:40]} 17. exf5 {[%emt 0:4:18]} Nhf6 {[%emt 0:0:6]} 18. O-O {[%emt 0:5:37]} Nxd5 {[%emt 0:2:25]} 19. Bf2 {[%emt 0:0:34]} N7f6 {[%emt 0:3:48]} 20. Bh4 {[%emt 0:14:3]} Qe8 {[%emt 0:6:28]} 21. g4 {[%emt 0:6:1]} Nxg4 {[%emt 0:14:40]} 22. fxg4 {[%emt 0:9:45]} Nc3 {[%emt 0:0:7]} 23. b5 {[%emt 0:0:58]} Qf7 {[%emt 0:1:9]} 24. Rf2 {[%emt 0:9:41]} Qd5 {[%emt 0:2:43]} 25. Kf1 {[%emt 0:1:5]} e4 {[%emt 0:1:47]} 26. Nf4 {[%emt 0:6:24]} Qe5 {[%emt 0:3:28]} 27. Re1 {[%emt 0:1:40]} Rfe8 {[%emt 0:2:10]} 28. f6 {[%emt 0:2:16]} Rc7 {[%emt 0:1:28]} 29. Bc4+ {[%emt 0:3:10]} d5 {[%emt 0:0:20]} 30. Ng6 {[%emt 0:3:16]} e3 {[%emt 0:0:9]} 31. Qc2 {[%emt 0:9:41]} Qe4 {[%emt 0:0:45]} 32. Qxe4 {[%emt 0:0:5]} Nxe4 {[%emt 0:0:4]} 1/2-1/2

[Event "56th Biel Festival MTO 2023"]
[White "Vantika Agrawal"]
[Black "Samant Aditya S"]
[Site "Biel"]
[Round "6.4"]
[Annotator "ChessBase"]
[Result "1/2-1/2"]
[Date "2023.07.24"]
[WhiteElo "2428"]
[BlackElo "2510"]
[PlyCount "87"]
[TimeControl "60"]

1. d4 {[%emt 0:0:0]} Nf6 {[%emt 0:0:0]} 2. c4 {[%emt 0:0:0]} e6 {[%emt 0:0:0]} 3. Nf3 {[%emt 0:0:0]} d5 {[%emt 0:0:0]} 4. g3 {[%emt 0:0:0]} Bb4+ {[%emt 0:0:0]} 5. Bd2 {[%emt 0:0:0]} Bd6 {[%emt 0:0:0]} 6. Nc3 {[%emt 0:0:0]} O-O {[%emt 0:0:0]} 7. Bg2 {[%emt 0:1:13]} dxc4 {[%emt 0:0:0]} 8. e4 {[%emt 0:13:49]} Be7 {[%emt 0:0:0]} 9. Qe2 {[%emt 0:5:35]} a6 {[%emt 0:0:0]} 10. a4 {[%emt 0:4:34]} c5 {[%emt 0:22:15]} 11. dxc5 {[%emt 0:3:51]} Nfd7 {[%emt 0:0:29]} 12. Qxc4 {[%emt 0:13:55]} Nxc5 {[%emt 0:0:8]} 13. O-O {[%emt 0:4:0]} Nc6 {[%emt 0:3:43]} 14. Be3 {[%emt 0:12:41]} Qd3 {[%emt 0:10:26]} 15. Nd2 {[%emt 0:9:43]} Ne5 {[%emt 0:4:11]} 16. Qxd3 {[%emt 0:4:15]} Ncxd3 {[%emt 0:0:32]} 17. Rab1 {[%emt 0:1:27]} Bd7 {[%emt 0:16:24]} 18. h3 {[%emt 0:4:14]} Bc6 {[%emt 0:17:28]} 19. f4 {[%emt 0:0:40]} Nd7 {[%emt 0:0:5]} 20. Nb3 {[%emt 0:6:5]} Bb4 {[%emt 0:13:0]} 21. Nd4 {[%emt 0:2:51]} Bc5 {[%emt 0:8:51]} 22. Rfd1 {[%emt 0:0:58]} Nb4 {[%emt 0:0:5]} 23. Bf2 {[%emt 0:4:52]} Rfd8 {[%emt 0:0:32]} 24. Nxc6 {[%emt 0:2:7]} bxc6 {[%emt 0:2:2]} 25. e5 {[%emt 0:0:37]} Bxf2+ {[%emt 0:0:22]} 26. Kxf2 {[%emt 0:0:5]} Nb6 {[%emt 0:0:5]} 27. Ke2 {[%emt 0:2:56]} Kf8 {[%emt 0:0:33]} 28. b3 {[%emt 0:1:29]} a5 {[%emt 0:0:47]} 29. Ne4 {[%emt 0:0:29]} Ke7 {[%emt 0:0:5]} 30. Rbc1 {[%emt 0:2:10]} N6d5 {[%emt 0:2:26]} 31. Rc4 {[%emt 0:0:46]} f6 {[%emt 0:0:38]} 32. Nd6 {[%emt 0:0:33]} Rf8 {[%emt 0:0:50]} 33. Rdc1 {[%emt 0:0:32]} fxe5 {[%emt 0:0:31]} 34. fxe5 {[%emt 0:0:5]} Kd7 {[%emt 0:0:24]} 35. Rg4 {[%emt 0:0:51]} g6 {[%emt 0:0:19]} 36. Rh4 {[%emt 0:0:13]} h5 {[%emt 0:0:7]} 37. Rhc4 {[%emt 0:0:44]} g5 {[%emt 0:0:28]} 38. h4 {[%emt 0:0:36]} g4 {[%emt 0:1:8]} 39. Be4 {[%emt 0:0:30]} Rab8 {[%emt 0:0:33]} 40. Rd1 {[%emt 0:0:32]} Na2 {[%emt 0:1:0]} 41. Rd3 {[%emt 0:0:0]} Nab4 {[%emt 0:3:28]} 42. Rd2 {[%emt 0:1:12]} Na6 {[%emt 0:0:7]} 43. Rd3 {[%emt 0:1:11]} Nab4 {[%emt 0:1:5]} 44. Rd2 {[%emt 0:3:59]} 1/2-1/2

[Event "56th Biel Festival MTO 2023"]
[White "Albornoz Cabrera,Carlos Daniel"]
[Black "Wang,Chen"]
[Site "Biel"]
[Round "6.5"]
[Annotator "ChessBase"]
[Result "1/2-1/2"]
[Date "2023.07.24"]
[WhiteElo "2591"]
[BlackElo "2477"]
[PlyCount "77"]
[TimeControl "60"]

1. e4 {[%emt 0:0:0]} c5 {[%emt 0:0:0]} 2. Nf3 {[%emt 0:0:0]} e6 {[%emt 0:0:0]} 3. d4 {[%emt 0:0:0]} cxd4 {[%emt 0:0:0]} 4. Nxd4 {[%emt 0:0:0]} Nc6 {[%emt 0:0:0]} 5. Nc3 {[%emt 0:0:0]} a6 {[%emt 0:0:0]} 6. Qd3 {[%emt 0:0:0]} Qc7 {[%emt 0:4:11]} 7. Nxc6 {[%emt 0:0:0]} Qxc6 {[%emt 0:3:55]} 8. a4 {[%emt 0:0:0]} Bc5 {[%emt 0:8:55]} 9. Be2 {[%emt 0:0:0]} Ne7 {[%emt 0:1:1]} 10. O-O {[%emt 0:8:21]} O-O {[%emt 0:0:5]} 11. Be3 {[%emt 0:4:43]} d6 {[%emt 0:8:14]} 12. Rfd1 {[%emt 0:11:31]} e5 {[%emt 0:34:33]} 13. Bxc5 {[%emt 0:4:36]} dxc5 {[%emt 0:0:5]} 14. Qg3 {[%emt 0:9:0]} Ng6 {[%emt 0:1:27]} 15. Bc4 {[%emt 0:9:14]} Be6 {[%emt 0:0:22]} 16. Bd5 {[%emt 0:2:13]} Qc7 {[%emt 0:1:16]} 17. Rd2 {[%emt 0:3:44]} Rfd8 {[%emt 0:1:36]} 18. Rad1 {[%emt 0:1:8]} Nf8 {[%emt 0:1:5]} 19. h4 {[%emt 0:5:53]} f6 {[%emt 0:6:2]} 20. Qh3 {[%emt 0:7:9]} Kf7 {[%emt 0:6:51]} 21. Bxe6+ {[%emt 0:2:47]} Nxe6 {[%emt 0:0:5]} 22. Nd5 {[%emt 0:0:16]} Qc6 {[%emt 0:0:25]} 23. Qf5 {[%emt 0:2:49]} h6 {[%emt 0:6:21]} 24. h5 {[%emt 0:5:48]} Qe8 {[%emt 0:0:10]} 25. Qh7 {[%emt 0:13:30]} Nf8 {[%emt 0:1:53]} 26. Qf5 {[%emt 0:0:5]} Qe6 {[%emt 0:4:19]} 27. Qf3 {[%emt 0:0:23]} Rd7 {[%emt 0:0:7]} 28. Qe3 {[%emt 0:1:54]} Qc6 {[%emt 0:1:10]} 29. a5 {[%emt 0:2:11]} Rdd8 {[%emt 0:0:9]} 30. Qf3 {[%emt 0:0:49]} Rd7 {[%emt 0:1:21]} 31. Qg3 {[%emt 0:0:30]} Rdd8 {[%emt 0:0:30]} 32. Qg4 {[%emt 0:2:16]} Qa4 {[%emt 0:1:39]} 33. Rd3 {[%emt 0:0:37]} Rd7 {[%emt 0:2:7]} 34. Rg3 {[%emt 0:1:46]} Rdd8 {[%emt 0:0:18]} 35. Rdd3 {[%emt 0:0:46]} Ke8 {[%emt 0:0:31]} 36. Rc3 {[%emt 0:1:17]} Rd7 {[%emt 0:1:49]} 37. Kh2 {[%emt 0:0:1]} Rdd8 {[%emt 0:0:8]} 38. Qxg7 {[%emt 0:2:19]} b6 {[%emt 0:1:42]} 39. Kg1 {[%emt 0:1:6]} 1/2-1/2